[Event "Hungary Olimpic Hopes 2022"]
[Site "Tapolca"]
[Date "2022.06.23"]
[Round "1.8"]
[White "Szarvas, Nora Orsolya"]
[Black "Bende, Eniko Tunde"]
[Result "1-0"]
[ECO "B36"]
[WhiteElo "1669"]
[BlackElo "1142"]
[Annotator "NA RC"]
[PlyCount "169"]
[EventDate "2022.06.23"]
[EventType "swiss"]
[EventCountry "HUN"]
[SourceTitle "playchess.com"]
[Source "ChessBase"]
[SourceQuality "1"]
[TimeControl "5400+30"]

1. e4 {[%emt 0:00:33]} c5 {[%emt 0:00:06]} 2. Nf3 {[%emt 0:00:20]} Nc6 {[%emt 0:00:23]} 3. d4 {[%emt 0:00:11]} cxd4 {[%emt 0:00:18]} 4. Nxd4 {[%emt 0:00:06]} g6 {[%emt 0:00:55]} 5. c4 {[%emt 0:02:13]} Nf6 {[%emt 0:00:19]} 6. Nc3 {[%emt 0:00:11]} Nxd4 {[%emt 0:00:22]} 7. Qxd4 {[%emt 0:00:10]} d6 {[%emt 0:00:08]} 8. Be2 {[%emt 0:02:52]} Bg7 {[%emt 0:00:06]} 9. O-O {[%emt 0:01:46]} O-O 10. Qd3 {[%emt 0:09:13]} Qa5 {[%emt 0:05:03]} 11. Bd2 {[%emt 0:07:22]} Be6 {[%emt 0:01:05]} 12. Nd5 {[%emt 0:04:11]} Qd8 {[%emt 0:01:39]} 13. Nf4 {[%emt 0:01:56]} Bg4 {[%emt 0:01:06]} 14. Bxg4 {[%emt 0:02:36]} Nxg4 15. Bc3 {[%emt 0:08:17]} Ne5 {[%emt 0:00:26]} 16. Bxe5 {[%emt 0:02:01]} Bxe5 {[%emt 0:00:10]} 17. Nd5 {[%emt 0:00:43]} e6 {[%emt 0:00:39]} 18. Nc3 {[%emt 0:00:44]} a6 {[%emt 0:02:01]} 19. Rac1 {[%emt 0:02:30]} Qc7 20. g3 {[%emt 0:06:00]} Rac8 {[%emt 0:00:57]} 21. b3 {[%emt 0:00:59]} Qa5 22. f4 {[%emt 0:12:57]} Qb6+ {[%emt 0:02:04]} 23. Kg2 {[%emt 0:00:10]} Qd4 {[%emt 0:02:09]} 24. Rfd1 {[%emt 0:00:53]} Qxd3 {[%emt 0:00:30]} 25. Rxd3 {[%emt 0:00:06]} Bxc3 {[%emt 0:00:05]} 26. Rcxc3 {[%emt 0:00:10]} Rc6 {[%emt 0:00:46]} 27. Kf3 {[%emt 0:01:02]} Rfc8 {[%emt 0:00:07]} 28. Rc1 {[%emt 0:02:29]} b5 {[%emt 0:00:21]} 29. Rdc3 {[%emt 0:00:12]} d5 {[%emt 0:00:14]} 30. exd5 {[%emt 0:06:03]} exd5 {[%emt 0:00:08]} 31. c5 {[%emt 0:04:47]} Kf8 {[%emt 0:00:51]} 32. b4 {[%emt 0:00:06]} Ke7 {[%emt 0:00:31]} 33. Rd3 {[%emt 0:00:09]} Ke6 {[%emt 0:00:17]} 34. Re1+ {[%emt 0:00:04]} Kf6 {[%emt 0:00:43]} 35. Rxd5 {[%emt 0:00:07]} a5 {[%emt 0:00:32]} 36. a3 {[%emt 0:00:05]} axb4 {[%emt 0:01:00]} 37. axb4 {[%emt 0:00:05]} Ra6 {[%emt 0:00:10]} 38. Red1 {[%emt 0:01:24]} Ra4 {[%emt 0:00:23]} 39. R1d4 {[%emt 0:00:14]} Ra3+ {[%emt 0:00:46]} 40. Kg4 {[%emt 0:01:01]} h5+ {[%emt 0:00:22]} 41. Kh4 {[%emt 0:00:17]} Ra2 {[%emt 0:00:14]} 42. Kh3 {[%emt 0:00:14]} Kg7 {[%emt 0:01:42]} 43. Rd8 {[%emt 0:01:02]} Rc7 {[%emt 0:02:49]} 44. Rb8 {[%emt 0:01:39]} Re7 {[%emt 0:06:14]} 45. Rd1 Ree2 {[%emt 0:00:22]} 46. Rh1 {[%emt 0:00:31]} f6 {[%emt 0:00:22]} 47. Rxb5 {[%emt 0:00:27]} g5 {[%emt 0:00:25]} 48. fxg5 {[%emt 0:00:53]} fxg5 {[%emt 0:03:00]} 49. Rb7+ {[%emt 0:00:45]} Kg6 {[%emt 0:00:12]} 50. Rb6+ {[%emt 0:00:09]} Kg7 {[%emt 0:01:25]} 51. c6 {[%emt 0:02:14]} Rac2 {[%emt 0:00:38]} 52. b5 {[%emt 0:00:21]} Kg6 {[%emt 0:00:52]} 53. c7+ {[%emt 0:00:11]} Kf5 {[%emt 0:00:47]} 54. Rf1+ {[%emt 0:00:15]} Ke5 {[%emt 0:00:36]} 55. Rh1 {[%emt 0:00:08]} Kf5 {[%emt 0:00:22]} 56. c8=Q+ {[%emt 0:00:19]} Rxc8 {[%emt 0:00:40]} 57. Rf1+ {[%emt 0:00:58]} Ke5 {[%emt 0:00:20]} 58. Rg6 {[%emt 0:02:32]} g4+ {[%emt 0:00:34]} 59. Kh4 {[%emt 0:00:05]} Rxh2+ {[%emt 0:00:08]} 60. Kg5 {[%emt 0:00:05]} Rb8 {[%emt 0:02:37]} 61. Rf5+ {[%emt 0:02:01]} Kd4 {[%emt 0:01:02]} 62. b6 {[%emt 0:01:29]} Rg2 {[%emt 0:01:19]} 63. Rd6+ {[%emt 0:01:03]} Ke3 {[%emt 0:00:55]} 64. Re5+ {[%emt 0:00:07]} Kf2 {[%emt 0:00:51]} 65. Kf4 {[%emt 0:01:47]} Rf8+ 66. Rf5 {[%emt 0:01:31]} Rxf5+ {[%emt 0:01:15]} 67. Kxf5 Rxg3 {[%emt 0:00:55]} 68. Rd2+ {[%emt 0:00:16]} Ke1 {[%emt 0:00:53]} 69. Rb2 {[%emt 0:00:16]} Re3 {[%emt 0:00:41]} 70. b7 {[%emt 0:00:18]} Re8 {[%emt 0:00:05]} 71. b8=Q {[%emt 0:00:10]} Rxb8 {[%emt 0:00:03]} 72. Rxb8 {[%emt 0:00:07]} g3 {[%emt 0:00:15]} 73. Rb1+ {[%emt 0:02:39]} Kf2 {[%emt 0:01:26]} 74. Kf4 {[%emt 0:00:30]} g2 {[%emt 0:00:38]} 75. Rb2+ {[%emt 0:00:07]} Kf1 {[%emt 0:00:39]} 76. Kf3 {[%emt 0:00:05]} Kg1 {[%emt 0:00:28]} 77. Rxg2+ {[%emt 0:00:04]} Kh1 {[%emt 0:00:24]} 78. Ra2 {[%emt 0:00:16]} h4 {[%emt 0:00:22]} 79. Kg4 {[%emt 0:00:05]} h3 {[%emt 0:00:13]} 80. Kxh3 {[%emt 0:00:04]} Kg1 {[%emt 0:00:04]} 81. Kg3 {[%emt 0:00:02]} Kf1 {[%emt 0:00:15]} 82. Kf3 {[%emt 0:00:04]} Kg1 {[%emt 0:00:11]} 83. Rc2 {[%emt 0:00:51]} Kh1 {[%emt 0:00:18]} 84. Kg3 {[%emt 0:00:05]} Kg1 {[%emt 0:00:15]} 85. Rc1# {[%emt 0:00:03]} 1-0

[Event "Hungary Olimpic Hopes 2022"]
[Site "Tapolca"]
[Date "2022.06.23"]
[Round "1.9"]
[White "Lehocz, Jozsef Jr."]
[Black "Janosi, Bence"]
[Result "1-0"]
[ECO "A28"]
[WhiteElo "1963"]
[BlackElo "1314"]
[Annotator "NA RC"]
[PlyCount "95"]
[EventDate "2022.06.23"]
[EventType "swiss"]
[EventCountry "HUN"]
[SourceTitle "playchess.com"]
[Source "ChessBase"]
[SourceQuality "1"]
[TimeControl "5400+30"]

1. c4 {[%emt 0:00:04]} e5 {[%emt 0:00:07]} 2. d3 {[%emt 0:00:05]} Nc6 {[%emt 0:00:19]} 3. Nf3 {[%emt 0:00:18]} Nf6 {[%emt 0:01:04]} 4. Nc3 d6 5. g3 {[%emt 0:01:06]} Be7 {[%emt 0:03:22]} 6. Bg2 {[%emt 0:02:19]} O-O {[%emt 0:03:13]} 7. O-O {[%emt 0:00:59]} Bd7 {[%emt 0:02:52]} 8. Bd2 {[%emt 0:04:27]} Qc8 {[%emt 0:03:09]} 9. Re1 {[%emt 0:03:31]} h6 {[%emt 0:06:36]} 10. Rc1 {[%emt 0:03:25]} Be6 {[%emt 0:02:14]} 11. Qa4 {[%emt 0:10:56]} Bd7 {[%emt 0:06:22]} 12. Nd5 {[%emt 0:06:27]} Re8 {[%emt 0:04:12]} 13. Qc2 {[%emt 0:07:17]} a5 {[%emt 0:01:44]} 14. a3 {[%emt 0:10:47]} Bh3 {[%emt 0:00:29]} 15. Bxh3 {[%emt 0:01:54]} Qxh3 {[%emt 0:00:53]} 16. Nxc7 {[%emt 0:02:19]} Ng4 17. e3 {[%emt 0:01:40]} e4 {[%emt 0:04:31]} 18. dxe4 {[%emt 0:00:51]} Nce5 {[%emt 0:00:49]} 19. Qd1 Nd3 20. Rf1 {[%emt 0:04:53]} Nde5 {[%emt 0:01:57]} 21. Re1 {[%emt 0:01:31]} Nd3 {[%emt 0:15:36]} 22. Qe2 {[%emt 0:05:36]} Nxe1 $2 {[%emt 0:04:09]} ({Black should play} 22... Ngxf2 $14 23. Rf1 (23. Nxe8 Rxe8 24. Rf1 Nxc1 $14) (23. Nxa8 Rxa8 24. Rf1 Nxc1 $11) 23... Nxc1 24. Qxf2 (24. Rxc1 Nxe4 25. Nxe8 Rxe8 $11) 24... Nd3) 23. Qxe1 Nf6 24. Nxa8 {[%emt 0:03:36]} Rxa8 {[%emt 0:00:53]} 25. Bxa5 $2 {[%emt 0:01:25]} (25. Qd1 $16) 25... Nxe4 $2 {[%emt 0:04:38]} (25... Qh5 $15 {stays ahead.} 26. e5 dxe5) 26. Bc3 {[%emt 0:01:21]} Qf5 27. Qe2 {[%emt 0:00:14]} Nxc3 {[%emt 0:01:25]} 28. Rxc3 Bf6 {[%emt 0:02:44]} 29. Rb3 {[%emt 0:03:53]} Qe4 {[%emt 0:02:20]} 30. Kg2 {[%emt 0:04:21]} g5 {[%emt 0:01:26]} 31. Qd3 {[%emt 0:00:44]} Qc6 32. Qd5 {[%emt 0:00:01]} Qxd5 {[%emt 0:02:00]} 33. cxd5 {[%emt 0:00:47]} Ra7 {[%emt 0:07:03]} 34. Rb6 {[%emt 0:00:51]} Kf8 35. Nd4 Bxd4 {[%emt 0:04:52]} 36. exd4 {[%emt 0:00:31]} Ke7 {[%emt 0:00:41]} 37. Kf3 {[%emt 0:01:15]} Kd7 {[%emt 0:00:51]} 38. Rb3 {[%emt 0:00:53]} f5 39. g4 fxg4+ {[%emt 0:02:16]} 40. Kxg4 {[%emt 0:00:44]} Kc7 {[%emt 0:00:02]} 41. Rc3+ {[%emt 0:02:54]} Kd7 {[%emt 0:00:21]} 42. b4 {[%emt 0:00:54]} Ra8 {[%emt 0:06:36]} 43. Rf3 {[%emt 0:00:14]} Ke7 {[%emt 0:05:40]} 44. Kh5 {[%emt 0:00:33]} Rg8 {[%emt 0:00:27]} 45. Kxh6 g4 46. Rf4 {[%emt 0:01:46]} Rh8+ {[%emt 0:00:46]} 47. Kg5 {[%emt 0:00:09]} Rxh2 {[%emt 0:00:34]} 48. Kxg4 $18 1-0

[Event "Hungary Olimpic Hopes 2022"]
[Site "Tapolca"]
[Date "2022.06.23"]
[Round "1.10"]
[White "Karman, Gergely"]
[Black "Feher, Botond"]
[Result "1/2-1/2"]
[ECO "B24"]
[WhiteElo "1382"]
[BlackElo "1792"]
[Annotator "NA RC"]
[PlyCount "68"]
[EventDate "2022.06.23"]
[EventType "swiss"]
[EventCountry "HUN"]
[SourceTitle "playchess.com"]
[Source "ChessBase"]
[SourceQuality "1"]
[TimeControl "5400+30"]

1. e4 {[%emt 0:00:03]} c5 {[%emt 0:00:10]} 2. Nc3 {[%emt 0:00:02]} Nc6 {[%emt 0:00:13]} 3. Bb5 {[%emt 0:00:02]} Nd4 {[%emt 0:00:18]} 4. f4 {[%emt 0:00:07]} g6 {[%emt 0:00:38]} 5. Nf3 {[%emt 0:00:14]} a6 {[%emt 0:00:13]} 6. Be2 {[%emt 0:00:12]} Bg7 {[%emt 0:04:42]} 7. O-O {[%emt 0:02:10]} e6 {[%emt 0:03:15]} 8. d3 {[%emt 0:03:41]} Ne7 {[%emt 0:18:57]} 9. e5 {[%emt 0:05:10]} d5 {[%emt 0:01:06]} 10. exd6 {[%emt 0:00:56]} Qxd6 {[%emt 0:00:21]} 11. Ne4 {[%emt 0:00:49]} Qc7 12. c3 {[%emt 0:12:58]} Nxe2+ {[%emt 0:04:54]} 13. Qxe2 O-O {[%emt 0:06:07]} 14. Be3 {[%emt 0:01:24]} b6 {[%emt 0:00:42]} 15. d4 {[%emt 0:00:46]} Bb7 {[%emt 0:03:26]} 16. Nfd2 {[%emt 0:01:48]} c4 17. Ng3 b5 {[%emt 0:10:04]} 18. Nf3 {[%emt 0:19:42]} Bxf3 {[%emt 0:03:22]} 19. Qxf3 {[%emt 0:00:26]} Qc6 {[%emt 0:07:19]} 20. Qxc6 {[%emt 0:01:26]} Nxc6 {[%emt 0:00:04]} 21. Ne4 {[%emt 0:00:26]} Rfd8 {[%emt 0:01:56]} 22. Bf2 {[%emt 0:00:38]} Rd5 {[%emt 0:02:07]} 23. Bh4 a5 {[%emt 0:12:18]} 24. a3 {[%emt 0:05:46]} Nb8 {[%emt 0:12:07]} 25. Bf6 {[%emt 0:00:44]} Nd7 {[%emt 0:00:07]} 26. Bxg7 {[%emt 0:00:40]} Kxg7 {[%emt 0:00:05]} 27. Rf2 {[%emt 0:00:24]} h6 {[%emt 0:00:58]} 28. g3 {[%emt 0:00:32]} Kf8 {[%emt 0:00:08]} 29. Kg2 {[%emt 0:00:58]} Ke7 {[%emt 0:00:17]} 30. Rc1 {[%emt 0:00:47]} Nb6 {[%emt 0:00:19]} 31. Nc5 {[%emt 0:00:27]} Na4 {[%emt 0:00:24]} 32. Nxa4 {[%emt 0:00:24]} bxa4 {[%emt 0:00:06]} 33. Rcc2 {[%emt 0:00:23]} Rb8 {[%emt 0:00:11]} 34. Rce2 {[%emt 0:00:31]} Rdb5 {[%emt 0:05:24]} 1/2-1/2

[Event "Hungary Olimpic Hopes 2022"]
[Site "Tapolca"]
[Date "2022.06.23"]
[Round "1.11"]
[White "Karacsonyi, Bank"]
[Black "Horvath, Matyas Sandor"]
[Result "0-1"]
[ECO "B07"]
[WhiteElo "1812"]
[BlackElo "1354"]
[Annotator "NA RC"]
[PlyCount "87"]
[EventDate "2022.06.23"]
[EventType "swiss"]
[EventCountry "HUN"]
[SourceTitle "playchess.com"]
[Source "ChessBase"]
[SourceQuality "1"]
[TimeControl "5400+30"]

1. e4 {[%emt 0:00:03]} d6 {[%emt 0:00:07]} 2. d4 {[%emt 0:00:06]} Nf6 {[%emt 0:00:11]} 3. Nc3 {[%emt 0:00:43]} g6 4. Be3 {[%emt 0:01:59]} Bg7 {[%emt 0:01:09]} 5. Qd2 Ng4 {[%emt 0:01:32]} 6. Bg5 {[%emt 0:00:59]} h6 {[%emt 0:01:01]} 7. Bh4 {[%emt 0:02:18]} c6 {[%emt 0:01:37]} 8. h3 {[%emt 0:00:35]} Nf6 {[%emt 0:02:16]} 9. O-O-O {[%emt 0:09:23]} ({Better is} 9. f4 $16) 9... b5 {[%emt 0:06:00]} 10. Qe3 {[%emt 0:10:42]} b4 {[%emt 0:00:30]} 11. Na4 {[%emt 0:01:05]} Nbd7 {[%emt 0:08:41]} 12. Bc4 {[%emt 0:02:26]} Nb6 {[%emt 0:02:47]} 13. Nxb6 {[%emt 0:06:49]} axb6 14. Bxf6 {[%emt 0:04:24]} exf6 {[%emt 0:08:27]} 15. Qb3 {[%emt 0:00:27]} O-O {[%emt 0:00:56]} 16. Qxb4 b5 {[%emt 0:03:20]} 17. Bb3 {[%emt 0:00:47] [#]} Re8 (17... Qc7 $1 $17 18. Qc3 c5) 18. d5 {[%emt 0:02:44]} c5 {[%emt 0:02:59]} 19. Qxb5 {[%emt 0:07:30]} Rxe4 20. Nf3 {[%emt 0:00:09]} Ba6 {[%emt 0:06:56]} 21. Qc6 {[%emt 0:05:23]} h5 {[%emt 0:04:58]} 22. a3 {[%emt 0:02:18]} Be2 {[%emt 0:09:18]} 23. Rde1 {[%emt 0:17:32]} (23. Rhe1 {might work better.} Rc8 24. Rxe2 (24. Qb7 $2 f5 $19) 24... Rxe2 25. Qa6 Rxf2 26. Kb1) 23... f5 {[%emt 0:05:35]} 24. Nd2 {[%emt 0:06:23]} Bh6 25. f3 {[%emt 0:01:24]} Bxd2+ {[%emt 0:07:23]} 26. Kb1 {[%emt 0:00:06]} Bxe1 {[%emt 0:01:36]} 27. fxe4 {[%emt 0:00:20]} Ra6 {[%emt 0:01:06]} 28. Qb7 Rb6 {[%emt 0:01:30]} 29. Qa7 {[%emt 0:00:37]} Bh4 {[%emt 0:01:53]} 30. exf5 {[%emt 0:02:56]} Qb8 31. Qa4 c4 {[%emt 0:03:44]} 32. fxg6 {[%emt 0:01:35]} cxb3 {[%emt 0:02:01]} 33. gxf7+ Kf8 {[%emt 0:00:59]} 34. Qxh4 {[%emt 0:00:51]} bxc2+ {[%emt 0:01:07]} 35. Kc1 {[%emt 0:09:23]} Rxb2 36. Qf6 {[%emt 0:00:24]} Rb1+ {[%emt 0:02:10]} 37. Kd2 c1=Q+ 38. Rxc1 {[%emt 0:00:41]} Rb2+ {[%emt 0:01:03]} 39. Ke1 Ba6 {[%emt 0:02:08]} 40. Qh8+ {[%emt 0:02:07]} Kxf7 {[%emt 0:00:46] [#]} 41. Rc7+ $3 {[%emt 0:02:13]} Kg6 {[#]} 42. Rg7+ $2 {[%emt 0:00:42]} (42. Qh7+ $1 $18 Kg5 43. Qe7+ Kf5 44. Qe6+ Kf4 45. Qxd6+ Ke4 46. Qg6+ Kf4 47. Qf6+ Kg3 48. Qe5+ Kxg2 {[#]} 49. Rc2+ $3 {[%mdl 512]} Kxh3 50. Qxh5+ (50. Qxb2 Qg3+ 51. Kd1 Qf3+ 52. Re2 Bxe2+ 53. Qxe2 Qxd5+ 54. Ke1 h4 $11) 50... Kg3 51. Qh2+ Kg4 52. Rxb2 Qxh2 53. Rxh2) 42... Kf5 {[%emt 0:01:08]} 43. Qxh5+ Ke4 44. Rg4+ $11 {[%emt 0:00:52]} 0-1

[Event "Hungary Olimpic Hopes 2022"]
[Site "Tapolca"]
[Date "2022.06.23"]
[Round "1.12"]
[White "Bihary, Soma Botond"]
[Black "Szabo, Akos"]
[Result "1/2-1/2"]
[ECO "B13"]
[WhiteElo "1283"]
[BlackElo "1662"]
[Annotator "NA RC"]
[PlyCount "86"]
[EventDate "2022.06.23"]
[EventType "swiss"]
[EventCountry "HUN"]
[SourceTitle "playchess.com"]
[Source "ChessBase"]
[SourceQuality "1"]
[TimeControl "5400+30"]

1. e4 {[%emt 0:00:06]} c6 {[%emt 0:00:15]} 2. d4 {[%emt 0:00:09]} d5 {[%emt 0:00:05]} 3. exd5 {[%emt 0:00:27]} cxd5 {[%emt 0:00:03]} 4. Bd3 {[%emt 0:00:21]} Nc6 {[%emt 0:00:07]} 5. c3 {[%emt 0:00:21]} Nf6 6. h3 e6 {[%emt 0:04:02]} 7. Bf4 {[%emt 0:01:57]} Be7 8. Ne2 {[%emt 0:01:52]} O-O {[%emt 0:01:00]} 9. O-O {[%emt 0:00:08]} a6 {[%emt 0:04:00]} 10. a4 {[%emt 0:01:29]} Bd6 {[%emt 0:08:18]} 11. Re1 {[%emt 0:10:08]} Re8 {[%emt 0:05:06]} 12. Nd2 Rb8 {[%emt 0:00:49]} 13. Nf3 {[%emt 0:03:14]} Qc7 14. Bxd6 {[%emt 0:04:31]} Qxd6 {[%emt 0:00:36]} 15. Ng3 e5 16. dxe5 {[%emt 0:05:09]} Nxe5 {[%emt 0:03:41]} 17. Nxe5 Rxe5 18. Rxe5 {[%emt 0:01:17]} Qxe5 {[%emt 0:00:19]} 19. Qe2 {[%emt 0:00:14]} Qxe2 20. Bxe2 {[%emt 0:00:24]} Bd7 {[%emt 0:00:45]} 21. a5 {[%emt 0:00:44]} g6 {[%emt 0:10:33]} 22. Rd1 Kf8 23. Bf3 {[%emt 0:01:48]} Bc6 {[%emt 0:01:16]} 24. Ne2 {[%emt 0:02:53]} Ke7 {[%emt 0:15:37]} 25. Nf4 {[%emt 0:01:19]} Bb5 {[%emt 0:00:30]} 26. Rd4 {[%emt 0:00:30]} Rd8 {[%emt 0:01:26]} 27. Nd3 {[%emt 0:03:49]} Kd6 28. Nb4 {[%emt 0:01:05]} Kc5 {[%emt 0:04:56]} 29. Nd3+ {[%emt 0:02:48]} Bxd3 {[%emt 0:11:13]} 30. Rxd3 {[%emt 0:01:24]} Kc4 {[%emt 0:02:58]} 31. Rd4+ Kc5 {[%emt 0:00:50]} 32. Rb4 {[%emt 0:01:27]} Rd7 {[%emt 0:01:53]} 33. Kh2 Re7 {[%emt 0:05:41]} 34. Rf4 {[%emt 0:04:03]} Ne4 {[%emt 0:03:05]} 35. Bd1 {[%emt 0:07:29]} Kb5 {[%emt 0:05:40]} 36. Bb3 {[%emt 0:00:55]} Rd7 37. Bxd5 {[%emt 0:00:24]} Rxd5 {[%emt 0:01:07]} 38. Rxe4 Rd2 39. Rb4+ {[%emt 0:01:30]} Kxa5 {[%emt 0:01:13]} 40. Rxb7 {[%emt 0:00:40]} Rxf2 {[%emt 0:00:00]} 41. b4+ {[%emt 0:00:50]} Ka4 42. c4 Rf4 {[%emt 0:03:52]} 43. b5 {[%emt 0:02:13]} axb5 1/2-1/2

[Event "Hungary Olimpic Hopes 2022"]
[Site "Tapolca"]
[Date "2022.06.23"]
[Round "1.13"]
[White "Biro, Beata"]
[Black "Toth, Kinga"]
[Result "1-0"]
[ECO "B23"]
[WhiteElo "1480"]
[BlackElo "1179"]
[Annotator "NA RC"]
[PlyCount "47"]
[EventDate "2022.06.23"]
[EventType "swiss"]
[EventCountry "HUN"]
[SourceTitle "playchess.com"]
[Source "ChessBase"]
[SourceQuality "1"]
[TimeControl "5400+30"]

1. e4 {[%emt 0:00:03]} c5 {[%emt 0:00:10]} 2. Nc3 {[%emt 0:00:10]} d6 {[%emt 0:00:10]} 3. f4 {[%emt 0:00:17]} Nc6 {[%emt 0:00:41]} 4. Bb5 {[%emt 0:00:36]} Bd7 {[%emt 0:00:29]} 5. Nf3 {[%emt 0:01:02]} a6 {[%emt 0:01:58]} 6. Bxc6 {[%emt 0:00:44]} Bxc6 {[%emt 0:00:14]} 7. d3 {[%emt 0:01:08]} Nf6 {[%emt 0:00:37]} 8. O-O {[%emt 0:01:17]} g6 {[%emt 0:00:39]} 9. Qe1 {[%emt 0:01:31]} Bg7 {[%emt 0:01:09]} 10. Qh4 d5 {[%emt 0:03:10]} 11. e5 {[%emt 0:03:47]} Nd7 {[%emt 0:00:56]} 12. Bd2 {[%emt 0:04:31]} Qb6 {[%emt 0:01:12]} 13. b3 {[%emt 0:02:50]} c4+ {[%emt 0:02:11]} 14. Kh1 {[%emt 0:00:41]} cxd3 {[%emt 0:00:16]} 15. cxd3 {[%emt 0:00:27]} Nc5 16. Be3 {[%emt 0:03:08]} Qb4 {[%emt 0:01:53]} 17. Bxc5 {[%emt 0:02:47]} Qxc5 {[%emt 0:00:27]} 18. Rac1 {[%emt 0:01:26]} Qb4 {[%emt 0:01:22]} 19. d4 {[%emt 0:03:39]} O-O {[%emt 0:01:01]} 20. f5 {[%emt 0:01:31]} e6 {[%emt 0:02:24]} 21. f6 {[%emt 0:01:01]} Bh8 {[%emt 0:00:25]} 22. Qh6 {[%emt 0:00:12]} Rfc8 {[%emt 0:04:35]} 23. Ng5 {[%emt 0:00:09]} Qxd4 {[%emt 0:02:20]} 24. Qxh7+ {[%emt 0:00:13]} 1-0

[Event "Hungary Olimpic Hopes 2022"]
[Site "Tapolca"]
[Date "2022.06.23"]
[Round "1.14"]
[White "Hangyal, Dora"]
[Black "Molnar, Dalma Reka"]
[Result "0-1"]
[ECO "B35"]
[WhiteElo "1163"]
[BlackElo "1554"]
[Annotator "NA RC"]
[PlyCount "78"]
[EventDate "2022.06.23"]
[EventType "swiss"]
[EventCountry "HUN"]
[SourceTitle "playchess.com"]
[Source "ChessBase"]
[SourceQuality "1"]
[TimeControl "5400+30"]

1. e4 {[%emt 0:00:04]} c5 {[%emt 0:00:19]} 2. Nf3 {[%emt 0:00:10]} Nc6 {[%emt 0:00:29]} 3. d4 {[%emt 0:00:13]} cxd4 {[%emt 0:00:14]} 4. Nxd4 {[%emt 0:00:08]} g6 {[%emt 0:00:13]} 5. Nc3 {[%emt 0:00:13]} Bg7 {[%emt 0:00:22]} 6. Be3 {[%emt 0:00:11]} Nf6 {[%emt 0:00:23]} 7. Bc4 {[%emt 0:00:20]} O-O {[%emt 0:00:16]} 8. O-O {[%emt 0:00:24]} d6 {[%emt 0:00:59]} 9. f4 {[%emt 0:01:23]} Qb6 {[%emt 0:11:11]} 10. Rb1 {[%emt 0:07:59]} Nxe4 {[%emt 0:04:06]} 11. Nce2 {[%emt 0:09:20]} e5 {[%emt 0:06:15]} 12. Nf5 {[%emt 0:06:02]} Qb4 {[%emt 0:02:29]} 13. Nxg7 {[%emt 0:04:46]} Qxc4 {[%emt 0:01:14]} 14. b3 {[%emt 0:02:53]} Qb4 {[%emt 0:01:03]} 15. fxe5 {[%emt 0:00:32]} Kxg7 {[%emt 0:00:13]} 16. a3 {[%emt 0:02:33]} Qxa3 {[%emt 0:03:33]} 17. Qd5 {[%emt 0:00:18]} Qb4 {[%emt 0:01:51]} 18. exd6 {[%emt 0:04:13]} Nxd6 {[%emt 0:02:13]} 19. Bc5 {[%emt 0:00:16]} Qe4 {[%emt 0:08:34]} 20. Qxe4 {[%emt 0:00:22]} Nxe4 {[%emt 0:00:14]} 21. Bxf8+ {[%emt 0:00:08]} Kxf8 {[%emt 0:00:09]} 22. Rf4 {[%emt 0:01:10]} f5 {[%emt 0:02:20]} 23. Rbf1 {[%emt 0:00:38]} Kg7 {[%emt 0:00:24]} 24. g4 {[%emt 0:00:53]} g5 {[%emt 0:01:45]} 25. Rxf5 {[%emt 0:00:58]} Bxf5 {[%emt 0:00:10]} 26. gxf5 {[%emt 0:00:18]} Rf8 {[%emt 0:00:45]} 27. c3 {[%emt 0:02:27]} Nd6 {[%emt 0:00:46]} 28. Ng3 {[%emt 0:00:24]} Ne7 {[%emt 0:00:41]} 29. Nh5+ {[%emt 0:00:52]} Kh6 {[%emt 0:01:12]} 30. f6 {[%emt 0:01:26]} Kxh5 {[%emt 0:01:26]} 31. fxe7 {[%emt 0:00:08]} Rxf1+ {[%emt 0:00:19]} 32. Kxf1 {[%emt 0:00:15]} Kg6 {[%emt 0:00:05]} 33. Kg2 {[%emt 0:00:08]} Kf7 {[%emt 0:00:07]} 34. Kg3 {[%emt 0:01:07]} Kxe7 {[%emt 0:00:09]} 35. Kg4 {[%emt 0:00:08]} Kf6 {[%emt 0:00:14]} 36. b4 {[%emt 0:00:12]} Ne4 {[%emt 0:01:51]} 37. c4 {[%emt 0:00:17]} Kg6 {[%emt 0:00:27]} 38. h4 {[%emt 0:00:29]} gxh4 {[%emt 0:00:09]} 39. Kxh4 {[%emt 0:00:09]} a6 {[%emt 0:00:27]} 0-1

[Event "Hungary Olimpic Hopes 2022"]
[Site "Tapolca"]
[Date "2022.06.23"]
[Round "1.15"]
[White "Kiss, Inez"]
[Black "Balogh, Gerda"]
[Result "0-1"]
[ECO "C68"]
[WhiteElo "1469"]
[BlackElo "1531"]
[Annotator "NA RC"]
[PlyCount "96"]
[EventDate "2022.06.23"]
[EventType "swiss"]
[EventCountry "HUN"]
[SourceTitle "playchess.com"]
[Source "ChessBase"]
[SourceQuality "1"]
[TimeControl "5400+30"]

1. e4 {[%emt 0:00:03]} e5 {[%emt 0:00:07]} 2. Nf3 {[%emt 0:00:03]} Nc6 {[%emt 0:00:13]} 3. Bb5 {[%emt 0:00:05]} a6 {[%emt 0:00:52]} 4. Bxc6 {[%emt 0:00:05]} dxc6 {[%emt 0:00:14]} 5. Nc3 {[%emt 0:00:07]} f6 {[%emt 0:03:13]} 6. d4 {[%emt 0:00:16]} exd4 {[%emt 0:01:27]} 7. Nxd4 {[%emt 0:00:12]} c5 {[%emt 0:02:18]} 8. Nde2 {[%emt 0:00:10]} Qxd1+ {[%emt 0:01:04]} 9. Nxd1 {[%emt 0:00:08]} Be6 {[%emt 0:01:31]} 10. Bf4 {[%emt 0:00:39]} O-O-O {[%emt 0:01:04]} 11. Ne3 {[%emt 0:00:52]} Ne7 {[%emt 0:01:51]} 12. Nc3 {[%emt 0:00:53]} g5 {[%emt 0:06:33]} 13. Bg3 {[%emt 0:01:58]} f5 {[%emt 0:02:22]} 14. Be5 {[%emt 0:08:16]} Rg8 {[%emt 0:02:09]} 15. Bf6 {[%emt 0:05:05]} Re8 {[%emt 0:04:06]} 16. O-O-O {[%emt 0:10:23]} f4 {[%emt 0:06:33]} 17. Ned5 {[%emt 0:06:48]} Nc6 {[%emt 0:01:33]} 18. Rhe1 {[%emt 0:06:13]} Rg6 {[%emt 0:28:57]} 19. g3 {[%emt 0:10:41]} Nb4 {[%emt 0:05:36]} 20. e5 {[%emt 0:08:52]} Nxd5 {[%emt 0:02:17]} 21. Nxd5 {[%emt 0:00:19]} Bxd5 {[%emt 0:00:39]} 22. Rxd5 {[%emt 0:09:08]} Rxf6 {[%emt 0:00:43]} 23. Red1 {[%emt 0:01:16]} Rfe6 {[%emt 0:01:37]} 24. Rd7 {[%emt 0:02:25]} R6e7 {[%emt 0:01:11]} 25. e6 {[%emt 0:03:54]} h6 {[%emt 0:02:48]} 26. gxf4 {[%emt 0:01:12]} gxf4 {[%emt 0:00:22]} 27. c3 {[%emt 0:01:25]} Rxe6 {[%emt 0:01:21]} 28. Rf7 {[%emt 0:00:31]} Bd6 {[%emt 0:00:37]} 29. Rg1 {[%emt 0:01:35]} Re1+ {[%emt 0:00:49]} 30. Rxe1 {[%emt 0:00:04]} Rxe1+ {[%emt 0:00:17]} 31. Kd2 {[%emt 0:00:04]} Re6 {[%emt 0:00:15]} 32. Kd3 {[%emt 0:01:36]} b6 {[%emt 0:00:16]} 33. c4 {[%emt 0:01:05]} Kb7 {[%emt 0:00:05]} 34. b3 {[%emt 0:00:55]} Kc6 {[%emt 0:00:06]} 35. Rf5 {[%emt 0:01:04]} b5 {[%emt 0:00:46]} 36. Rf7 {[%emt 0:02:53]} b4 {[%emt 0:01:37]} 37. h3 {[%emt 0:01:44]} Rg6 {[%emt 0:01:02]} 38. Rh7 {[%emt 0:01:07]} Rg2 {[%emt 0:01:00]} 39. Ke2 {[%emt 0:00:34]} Rg1 {[%emt 0:00:26]} 40. Kd2 {[%emt 0:01:59]} Rf1 {[%emt 0:00:20]} 41. Ke2 {[%emt 0:00:13]} Ra1 {[%emt 0:00:05]} 42. Rxh6 {[%emt 0:00:25]} Rxa2+ {[%emt 0:00:10]} 43. Kf3 {[%emt 0:00:14]} Ra3 {[%emt 0:00:36]} 44. h4 {[%emt 0:00:23]} Rxb3+ {[%emt 0:00:10]} 45. Kg4 {[%emt 0:00:17]} Rb1 {[%emt 0:00:47]} 46. h5 {[%emt 0:00:24]} b3 {[%emt 0:00:11]} 47. Re6 {[%emt 0:00:52]} b2 {[%emt 0:00:13]} 48. Re2 {[%emt 0:01:02]} Rg1+ {[%emt 0:00:15]} 0-1